bitfinex/quotes_ETHUSD_20220227
["timestamp","ask_amount","ask_price","bid_price","bid_amount"]
[1645979719089,0.00302669,2775.8,2774.5,2.88408702]
[1645979719337,0.00302669,2775.8,2774.5,3.03799051]
[1645979719539,0.00302669,2775.8,2774.5,2.88408702]
[1645979719739,0.14712669,2775.8,2774.5,2.88408702]
[1645979719944,0.14712674,2775.8,2774.5,2.88408702]
[1645979720239,1.01684807,2775.3,2774.5,2.88408702]
[1645979720642,1.01684807,2775.3,2774.5,1.50144]
[1645979721041,0.14712674,2775.8,2774.6,1.80261]
[1645979721242,0.14712674,2775.8,2774.8,0.00543683]
[1645979721243,0.00543481,2775.8,2774.8,0.00543683]
[1645979722444,0.00543527,2775.8,2774.9,0.00543695]
[1645979722639,0.00543527,2775.8,2775.2,1.31785359]
[1645979722842,0.00543527,2775.8,2775.2,1.61785359]
[1645979723483,0.01087076,2775.8,2775.2,1.61785359]
[1645979723685,0.00543549,2775.8,2775.2,1.61785359]
[1645979724889,0.00534792,2775.8,2775.2,1.61785359]
[1645979725288,0.00534792,2775.8,2775.2,2.51904359]
[1645979725889,0.01038156,2775.8,2775.2,2.51904359]
[1645979726089,0.00503364,2775.8,2775.2,2.51904359]
[1645979727335,0.00503364,2775.8,2775.3,5.02353808]
[1645979727537,0.00503364,2775.8,2775.4,1.52349846]
[1645979727743,0.00503364,2775.8,2775.5,2.32099]
[1645979728134,0.00503364,2775.8,2775.6,0.20263583]
[1645979728334,0.01008663,2775.8,2775.6,0.20263583]
[1645979728535,0.00505299,2775.8,2775.7,1.38324196]
[1645979729537,0.0050827,2775.9,2775.7,1.38324196]
[1645979729738,0.0050827,2775.9,2775.7,1.60259359]
[1645979729943,0.0050827,2775.9,2775.7,2.50358359]
[1645979729944,8.27e-05,2775.9,2775.7,2.50358359]
[1645979730143,8.27e-05,2775.9,2775.8,4.18953333]
[1645979730348,0.0015463,2777.2,2776.0,8.5]
[1645979730657,0.0015463,2777.5,2776.1,5.54232563]
[1645979730826,0.0015463,2777.5,2776.1,4.19739471]
[1645979731024,0.6015463,2777.7,2776.1,4.19739471]
[1645979731225,0.3015463,2777.7,2776.1,4.19739471]
[1645979731826,1.11416303,2777.6,2776.9,1.10362416]
[1645979732029,0.00310891,2777.0,2776.4,0.519]
[1645979732226,0.00310891,2777.0,2776.4,1.59631717]
[1645979732527,0.00310891,2777.0,2776.4,0.519]
[1645979732733,0.00310891,2777.0,2776.2,1.27992444]
[1645979732934,0.00310891,2777.0,2776.2,1.43762799]
[1645979733126,0.00310891,2777.0,2776.5,1.3653769]
[1645979733327,0.00543532,2776.8,2776.5,1.3653769]
[1645979733526,0.00543532,2776.8,2776.3,0.00543637]
[1645979734556,5.0015463,2777.1,2776.3,0.00543637]
[1645979734557,0.14933237,2776.7,2776.3,0.00543313]
[1645979734754,1.42082663,2776.6,2776.3,0.00543313]
[1645979734955,0.1439,2776.5,2776.3,0.00543313]
[1645979735558,0.1439,2776.5,2776.3,0.01077468]
[1645979735754,0.1439,2776.5,2776.3,0.00534155]
[1645979736762,0.1439,2776.5,2776.3,0.01068312]
[1645979736957,2.47130747,2776.6,2776.3,0.00534157]
[1645979737156,1.42616747,2776.6,2776.3,0.00534157]
[1645979738112,1.42564419,2776.6,2776.3,0.00481815]
[1645979738493,3.22823419,2776.6,2776.3,0.00481815]
[1645979738694,8.37213419,2776.6,2776.3,0.00481815]
[1645979738898,10.78269092,2776.6,2776.3,0.00295537]
[1645979739096,1.07163781,2776.5,2776.3,0.00295537]
[1645979739295,1.07163781,2776.5,2776.3,0.00778978]
[1645979739296,0.6629,2776.4,2776.3,0.00778978]
[1645979739501,0.6629,2776.4,2776.3,0.00483441]
[1645979739502,6.55445673,2776.4,2776.3,0.00483441]
[1645979739701,2.55445673,2776.4,2776.3,0.00483441]
[1645979740100,6.55445673,2776.4,2776.3,0.00483441]
[1645979740300,7.55445673,2776.4,2776.3,0.00483441]
[1645979740501,7.55445673,2776.4,2775.9,0.0007173]
[1645979740703,9.35743603,2776.4,2775.9,0.0007173]
[1645979741600,0.89155673,2776.2,2776.0,0.00205364]
[1645979741841,1.41055673,2776.1,2776.0,0.00205364]
[1645979742042,5.519,2776.1,2776.0,0.00205364]
[1645979742241,6.519,2776.1,2776.0,0.00205364]
[1645979742542,7.93247029,2776.1,2776.0,0.00205364]
[1645979742745,8.25645137,2776.1,2776.0,0.00205364]
[1645979742941,6.84298108,2776.1,2775.9,7.021e-05]
[1645979743141,6.84298108,2776.1,2774.4,1.5239483]
[1645979743142,8.0,2775.9,2774.4,1.5239483]
[1645979743350,5.9017,2775.7,2774.4,1.5239483]
[1645979743545,5.0,2775.4,2774.4,0.3]
[1645979743749,0.519,2775.3,2774.4,0.00105689]
[1645979744145,2.32258,2775.3,2774.4,0.00105689]
[1645979744345,0.90178,2775.3,2774.4,0.00105689]
[1645979745147,2.80356,2775.4,2774.4,0.00105689]
[1645979745148,1.0,2775.4,2774.4,0.00105689]
[1645979745345,1.36531816,2775.3,2774.7,0.00218825]
[1645979745791,2.26694816,2775.3,2774.7,0.00218825]
[1645979746592,2.26694816,2775.3,2774.9,0.00555349]
[1645979747697,2.26694816,2775.3,2775.0,0.00555341]
[1645979748401,0.90163,2775.3,2775.0,0.00555341]
[1645979748797,0.90163,2775.3,2775.0,0.01092579]
[1645979748999,0.90163,2775.3,2775.0,0.00537238]
[1645979749543,1.0,2775.4,2775.0,1.43799565]
[1645979749745,0.1441,2775.6,2775.0,0.00537238]
[1645979750546,2.11223325,2775.7,2775.0,0.00537238]
[1645979750748,1.11223325,2775.7,2775.0,0.00537238]
[1645979751347,1.11223325,2775.7,2775.2,0.0050278]
[1645979751348,2.01379045,2775.7,2775.2,0.0050278]
[1645979752549,2.01379045,2775.7,2775.3,0.00504313]
[1645979752948,0.90157,2775.6,2775.3,0.00504313]
[1645979753388,5.90157,2775.6,2775.3,0.00504313]
[1645979753792,1.90157,2775.6,2775.4,0.00504309]
[1645979754191,0.90157,2775.6,2775.4,0.00504309]
[1645979754996,0.90157,2775.6,2775.4,0.00506911]
[1645979756099,0.90157,2775.6,2775.4,0.00508328]
[1645979758629,0.90157,2775.6,2774.5,0.00105689]
[1645979758834,0.90163,2775.3,2774.2,1.52413093]
[1645979759033,0.90163,2775.3,2774.3,0.00105689]
[1645979759235,0.90163,2775.3,2774.1,0.0351871]
[1645979759636,0.90163,2775.3,2774.6,0.00203438]
[1645979759835,1.05283565,2775.2,2774.6,0.00203438]
[1645979760786,1.05283565,2775.2,2774.8,0.00203427]
[1645979761187,2.8032747,2775.3,2774.8,0.00203427]
[1645979761588,1.8032747,2775.3,2774.8,0.00203427]
[1645979761786,2.8032747,2775.3,2774.8,0.00203427]
[1645979761988,1.8032747,2775.3,2774.9,0.00539957]
[1645979762186,2.8032747,2775.3,2774.9,0.00539957]
[1645979762587,1.8032747,2775.3,2774.9,0.00539957]
[1645979762788,2.8032747,2775.3,2774.9,0.00539957]
[1645979762989,1.8032747,2775.3,2774.9,0.00539957]
[1645979763192,2.8032747,2775.3,2774.9,0.00539957]
[1645979763389,1.8032747,2775.3,2775.0,0.00550269]
[1645979763590,2.8032747,2775.3,2775.0,0.00550269]
[1645979763790,1.8032747,2775.3,2775.0,0.00550269]
[1645979763995,2.8032747,2775.3,2775.0,0.00550269]
[1645979764434,1.8032747,2775.3,2775.0,0.01100534]
[1645979764734,2.8032747,2775.3,2775.0,0.00550265]
[1645979764935,1.8032747,2775.3,2775.0,0.00550265]
[1645979765140,2.8032747,2775.3,2775.0,0.00550265]
[1645979765336,1.8032747,2775.3,2775.0,0.00550265]
[1645979765538,2.8032747,2775.3,2775.0,0.00550265]
[1645979765737,1.8032747,2775.3,2775.0,0.00550265]
[1645979765936,2.8032747,2775.3,2775.0,0.00550265]
[1645979766938,2.8032747,2775.3,2775.0,0.00502941]
[1645979768185,1.8032747,2775.3,2775.0,0.00201361]
[1645979768386,2.8032747,2775.3,2775.0,0.00201361]
[1645979768588,1.8032747,2775.3,2775.0,0.00201361]
[1645979768784,2.8032747,2775.3,2775.0,0.00201361]
[1645979768984,1.8032747,2775.3,2775.0,0.00201361]
[1645979769190,2.8032747,2775.3,2775.0,0.00201361]
[1645979769390,1.10451058,2775.2,2775.0,0.00201361]
[1645979770591,2.00622058,2775.2,2775.0,0.00555647]
[1645979770987,0.90171,2775.2,2775.0,0.00555647]
[1645979772643,1.0,2775.3,2775.0,0.00555647]
[1645979772842,1.0,2775.4,2775.0,0.01111294]
[1645979773045,0.3,2775.5,2775.0,0.00555647]
[1645979773248,0.3,2775.7,2775.0,0.00555647]
[1645979773448,1.3,2775.8,2775.0,0.00555647]
[1645979773649,0.3,2775.8,2775.0,0.00555647]
[1645979773851,1.42948958,2775.8,2775.0,0.00555647]
[1645979774052,1.42948958,2775.8,2775.2,0.00538085]
[1645979774355,1.72948958,2775.8,2775.2,0.00538085]
[1645979775249,1.72948958,2775.8,2775.3,0.00503376]
[1645979776489,1.42948958,2775.8,2775.3,0.00503382]
[1645979777190,1.9014,2775.9,2775.3,0.00503382]
[1645979777591,0.9014,2775.9,2775.3,0.00503382]
[1645979778592,2.7044067,2775.9,2775.3,0.00503382]
[1645979778794,1.9014,2775.9,2775.3,0.00503382]
[1645979778991,1.9014,2775.9,2775.3,0.00508591]
[1645979779191,0.9014,2775.9,2775.3,0.00508591]
[1645979779833,0.9014,2775.9,2775.3,0.00381064]
[1645979780033,1.97373877,2775.9,2775.3,0.00508591]
[1645979780234,0.9014,2775.9,2775.3,0.00508591]
[1645979780737,2.69363628,2775.9,2775.3,0.00508591]
[1645979781134,3.69363628,2775.9,2775.3,0.00508591]
[1645979781336,3.69363628,2775.9,2774.6,0.00105689]
[1645979781535,1.44122858,2775.6,2774.9,1.38421293]
[1645979781734,3.69363628,2775.9,2775.0,1.52387433]
[1645979781941,0.89074978,2775.8,2774.9,1.38421293]
[1645979782338,3.5,2775.8,2774.9,1.38421293]
[1645979782537,3.5,2775.8,2775.2,0.00507997]
[1645979782538,0.89074978,2775.8,2775.2,0.00507997]
[1645979782739,3.20482996,2775.8,2775.2,0.00507997]
[1645979782939,2.20482996,2775.8,2775.2,0.00507997]
[1645979783182,3.20482996,2775.8,2775.2,0.00507997]
[1645979783388,1.0,2775.8,2775.2,0.00507997]
[1645979783585,4.73923628,2775.9,2775.2,0.00507997]
[1645979783786,4.73923628,2775.9,2775.2,0.00508003]
[1645979784492,6.19382978,2775.8,2775.2,0.00508003]
[1645979784687,0.89074978,2775.7,2775.2,0.00508003]
[1645979784886,0.89074978,2775.7,2775.2,0.00508008]
[1645979785287,1.3350641,2775.6,2775.2,0.00508008]
[1645979786088,0.89074978,2775.7,2775.2,0.00506924]
[1645979786489,1.0,2775.8,2775.2,0.00506924]
[1645979786687,1.0,2775.9,2775.2,0.00506924]
[1645979786945,1.89074978,2776.0,2775.3,1.52378192]
[1645979787153,1.41174653,2775.9,2775.3,1.52378192]
[1645979787348,0.89074978,2775.8,2775.2,0.00506935]
[1645979787548,2.30249631,2775.9,2775.2,0.00506935]
[1645979787748,0.89074978,2775.8,2775.2,0.00506935]
[1645979787948,1.79219978,2775.8,2775.2,0.00506935]
[1645979789761,0.90145,2775.8,2775.2,0.00508262]
[1645979791099,0.90145,2775.8,2774.8,0.00105689]
[1645979791100,0.89074978,2775.7,2774.8,0.00105689]
[1645979791300,0.89074978,2775.7,2774.8,1.52502135]
[1645979791706,0.89074978,2775.6,2774.8,1.52502135]
[1645979792204,0.89074978,2775.6,2774.9,1.52396446]
[1645979792804,2.38392662,2775.8,2774.9,1.52396446]
[1645979792805,0.89074978,2775.7,2774.9,1.52396446]
[1645979793208,0.89074978,2775.7,2775.1,0.002034]
[1645979794206,0.89074978,2775.6,2775.1,0.002034]
[1645979794845,0.89074978,2775.7,2775.1,0.002034]
[1645979795849,1.93629978,2775.8,2775.1,0.002034]
[1645979796049,0.1441,2775.8,2775.1,0.002034]
[1645979796352,2.43820013,2775.9,2775.1,0.002034]
[1645979796551,2.43820013,2775.9,2775.1,1.52599846]
[1645979796951,0.3,2776.0,2775.1,1.53137502]
[1645979797148,0.3,2776.0,2775.2,1.52396446]
[1645979797351,0.89074978,2776.0,2775.2,1.52396446]
[1645979798221,0.89074978,2776.0,2775.3,1.08534701]
[1645979799220,0.89074978,2775.9,2775.3,1.08534701]
[1645979799421,298.90927619,2775.0,2774.8,0.519]
[1645979799618,298.90927619,2775.0,2774.9,1.52384343]
[1645979799821,298.90927619,2775.0,2774.9,2.04284343]
[1645979800020,292.1812092,2775.0,2774.9,2.04284343]
[1645979800226,292.1812092,2775.0,2774.9,5.71586109]
[1645979800622,292.1812092,2775.0,2774.9,3.35952789]
[1645979803443,263.64701819,2775.0,2774.9,3.35952789]
[1645979803645,263.64439326,2775.0,2774.9,11.85952789]
[1645979803843,263.64439326,2775.0,2774.9,18.3667146]
[1645979804047,258.23845326,2775.0,2774.9,18.53485781]
[1645979804244,258.23845326,2775.0,2774.9,12.20398664]
[1645979804442,258.23845326,2775.0,2774.9,9.38642152]
[1645979805690,258.23845326,2775.0,2774.9,8.70398664]
[1645979805890,258.23845326,2775.0,2774.9,9.38642152]
[1645979806495,258.23845326,2775.0,2774.9,8.70398664]
[1645979806697,258.23845326,2775.0,2774.9,2.04284343]
[1645979807797,258.23845326,2775.0,2774.9,1.52384343]
[1645979809357,258.23845326,2775.0,2774.8,0.00504198]
[1645979809546,258.23845326,2775.0,2774.9,1.52392466]
[1645979810046,258.23845326,2775.0,2774.8,0.010084]
[1645979810246,258.23845326,2775.0,2774.8,0.00504202]
[1645979810651,1.25344507,2774.9,2774.8,0.00504202]
[1645979810848,1.25344507,2774.9,2774.8,1.52899921]
[1645979811447,258.23845326,2775.0,2774.8,1.52899921]
[1645979811648,258.23845326,2775.0,2774.9,1.52395719]
[1645979815604,258.23845326,2775.0,2773.6,1.0]
[1645979815804,258.23845326,2775.0,2774.5,0.3]
[1645979816000,258.23845326,2775.0,2774.6,1.52381511]
[1645979816200,258.23845326,2775.0,2774.8,0.00508223]
[1645979816400,0.14542491,2774.9,2774.8,0.00508223]
[1645979816600,0.14542491,2774.9,2774.8,1.37551903]
[1645979817036,0.14542491,2774.9,2774.8,1.53980601]
[1645979817437,0.14542491,2774.9,2774.8,1.53472378]
[1645979819039,0.14542417,2774.9,2774.8,1.53472378]
[1645979819443,258.23845326,2775.0,2774.8,1.53472378]
[1645979819644,0.14542286,2774.9,2774.5,0.00096]
[1645979819844,0.14542286,2774.9,2774.5,1.37086375]
[1645979820045,0.14542286,2774.9,2774.5,1.55248399]
[1645979820246,0.14542286,2774.9,2774.6,1.37086375]
[1645979820892,0.00569839,2774.8,2774.7,1.37086375]
[1645979821097,0.15112125,2774.8,2774.7,1.37086375]
[1645979821291,0.15112125,2774.8,2774.6,1.37086375]
[1645979821492,0.00569839,2774.8,2774.7,1.37086375]
[1645979821897,0.15112532,2774.8,2774.3,1.56582838]
[1645979822194,0.00569839,2774.8,2774.4,1.27086375]
[1645979822395,1.35667437,2774.6,2774.4,0.20229384]
[1645979822594,1.35667437,2774.6,2774.2,0.82565979]
[1645979822595,0.00569839,2774.8,2774.7,0.26889002]
[1645979823400,0.00534145,2774.9,2774.7,0.26889002]
[1645979824444,0.01035693,2774.9,2774.7,0.26889002]
[1645979824649,0.00501548,2774.9,2774.7,0.26889002]
[1645979825646,0.01003096,2774.9,2774.7,0.26889002]
[1645979825847,0.00501548,2774.9,2774.7,0.26889002]
[1645979826849,0.01007244,2774.9,2774.7,0.26889002]
[1645979827046,0.00505696,2774.9,2774.7,0.26889002]
[1645979828300,0.00509789,2774.9,2774.7,0.26889002]
[1645979830405,256.24355115,2775.0,2774.7,0.26889002]
[1645979830604,0.00509254,2774.9,2774.7,0.26889002]
[1645979831845,256.24355115,2775.0,2774.7,0.26889002]
[1645979834244,256.14695292,2775.0,2774.7,0.26889002]
[1645979835349,256.1492512,2775.0,2774.7,0.26889002]
[1645979836293,256.1492512,2775.0,2774.7,0.47427818]
[1645979836493,256.1492512,2775.0,2774.7,0.26889002]
[1645979837297,257.27041368,2775.0,2774.7,0.26889002]
[1645979837496,256.1492512,2775.0,2774.7,0.26889002]
[1645979837696,256.15495125,2775.0,2774.7,0.26889002]
[1645979837896,256.1492512,2775.0,2774.7,0.48105045]
[1645979838897,256.15459251,2775.0,2774.7,0.48105045]
[1645979839098,256.14889246,2775.0,2774.7,0.48105045]
[1645979839554,256.04889246,2775.0,2774.7,0.48105045]
[1645979840156,256.05391455,2775.0,2774.7,0.48105045]
[1645979840358,256.04857324,2775.0,2774.7,0.48105045]
[1645979840753,256.04857324,2775.0,2774.7,0.26889002]
[1645979840955,256.04857324,2775.0,2774.7,0.42429408]
[1645979841356,256.04857324,2775.0,2774.7,0.26889002]
[1645979842154,0.17215796,2774.9,2774.8,1.3442495]
[1645979842757,256.04861458,2775.0,2774.9,8.1721]
[1645979842962,142.46461539,2775.0,2774.9,8.1721]
[1645979843217,7.3,2776.2,2774.9,8.1721]
[1645979843218,0.02179056,2776.3,2775.0,4.5]
[1645979843417,0.50349201,2776.5,2775.6,0.01291933]
[1645979843617,10.18364978,2776.8,2775.7,0.519]
[1645979843618,0.46449201,2776.6,2775.7,0.519]
[1645979843817,9.2929,2776.8,2775.7,0.73772752]
[1645979843818,10.49803296,2776.8,2775.7,0.73772752]
[1645979844023,9.2929,2776.8,2775.9,0.90069]
[1645979844220,9.2929,2776.8,2776.1,2.70188]
[1645979844422,9.2929,2776.8,2776.2,0.519]
[1645979844625,9.2929,2776.8,2776.2,2.53385279]
[1645979844822,9.2929,2776.8,2776.2,11.15402668]
[1645979845025,8.105,2776.8,2776.3,0.37332353]
[1645979845225,1.86453011,2777.5,2776.9,1.13440026]
[1645979845226,1.7815387,2777.5,2776.9,1.13440026]
[1645979845425,1.7815387,2777.5,2777.0,0.519]
[1645979845623,9.8248,2777.8,2777.0,0.519]
[1645979845824,9.8248,2777.8,2777.1,6.493]
[1645979846129,5.0,2777.6,2776.5,0.519]
[1645979846323,9.8248,2777.8,2776.5,0.519]
[1645979846324,5.00340838,2777.4,2776.7,0.90071]
[1645979846726,0.00340838,2777.4,2776.7,0.90071]
[1645979846955,1.13074794,2777.3,2776.7,0.90071]
[1645979847552,0.00338036,2777.2,2776.7,0.90071]
[1645979848658,0.00338435,2777.1,2776.7,0.90071]
[1645979849858,0.00338435,2777.0,2776.7,0.90071]
[1645979850266,0.00338435,2777.0,2776.2,0.519]
[1645979850267,5.0,2776.8,2776.2,0.519]
[1645979850466,11.0233,2776.7,2776.2,0.519]
[1645979850713,11.0233,2776.7,2775.9,3.5]
[1645979851015,5.0,2776.6,2775.9,3.5]
[1645979851313,1.15101975,2776.4,2776.0,0.00541782]
[1645979851712,1.1961,2776.3,2776.0,0.00541782]
[1645979852113,1.1961,2776.3,2776.0,1.782e-05]
[1645979852319,1.1961,2776.3,2776.0,0.00236135]
[1645979852320,5.0738,2776.2,2776.0,0.00236135]
[1645979852512,5.0738,2776.2,2776.0,0.00234353]
[1645979853413,5.0738,2776.2,2775.8,0.901]
[1645979853414,1.35525059,2776.0,2775.8,0.901]
[1645979854459,1.35525059,2776.0,2775.4,2.32104]
[1645979855060,1.35525059,2776.0,2775.4,1.80204]
[1645979855262,6.35525059,2776.0,2775.4,1.80204]
[1645979855660,5.0,2776.0,2775.4,1.80204]
[1645979855862,5.0738,2776.2,2775.6,0.00572328]
[1645979856660,5.0,2776.1,2775.6,0.00572328]
[1645979857063,5.0,2776.1,2775.8,0.00572311]
[1645979858099,5.0738,2776.2,2775.8,0.00572311]
[1645979858302,5.0738,2776.2,2775.8,1.80755311]
[1645979858499,5.0738,2776.2,2775.8,1.98618525]
[1645979858700,5.0738,2776.2,2775.8,1.80755307]
[1645979858901,5.0738,2776.2,2775.8,2.01392666]
[1645979859102,5.0738,2776.2,2775.9,0.519]
[1645979859303,5.0738,2776.2,2775.9,1.62445536]
[1645979859511,5.0738,2776.2,2776.0,0.18017209]
[1645979859710,5.0738,2776.2,2776.1,0.519]
[1645979859910,5.0738,2776.2,2776.1,0.71117285]
[1645979860813,1.1961,2776.3,2776.1,0.71117285]
[1645979860814,1.1961,2776.3,2776.1,1.01117285]
[1645979861020,1.1961,2776.3,2776.1,0.819]
[1645979861212,1.1961,2776.3,2776.2,0.189568]
[1645979861414,1.1961,2776.3,2776.2,0.708568]
[1645979862450,1.1961,2776.3,2776.2,0.519]
[1645979863150,1.1961,2776.3,2775.9,0.90593094]
[1645979863351,1.1961,2776.3,2775.9,1.42497305]
[1645979864250,1.1961,2776.3,2775.9,1.43009086]
[1645979864454,1.1961,2776.3,2775.9,1.42501781]
[1645979865162,1.1961,2776.3,2775.9,0.00511781]
[1645979865358,5.0,2776.1,2775.9,1.781e-05]
[1645979865613,5.0,2776.1,2775.9,3.562e-05]
[1645979865807,0.00076438,2775.8,2775.3,1.40836753]
[1645979866007,0.00076438,2775.8,2775.4,1.40843356]
[1645979866206,0.00076438,2775.8,2775.3,2.30958356]
[1645979866406,0.00076438,2775.8,2775.4,1.40843356]
[1645979867213,0.00076438,2775.8,2775.5,0.519]
[1645979867410,0.00076438,2775.8,2775.6,1.62530927]
[1645979867609,0.00076438,2775.8,2775.7,1.92743356]
[1645979867812,0.00076438,2775.8,2775.7,2.11934858]
[1645979868010,0.00076438,2775.8,2775.7,2.22743356]
[1645979872465,0.00076438,2775.8,2775.7,3.22743356]
[1645979873115,0.00524276,2776.2,2775.7,3.22743356]
[1645979873298,0.00524276,2776.2,2775.8,1.40843356]
[1645979873500,0.00524276,2776.2,2775.9,0.519]
[1645979873700,0.00524276,2776.2,2776.0,1.40843356]
[1645979873898,0.00524276,2776.2,2776.1,0.519]
[1645979874101,0.005243,2776.2,2776.1,1.92743356]
[1645979874705,0.005243,2776.2,2776.1,2.22743356]
[1645979875307,0.0050871,2776.3,2776.1,2.22743356]
[1645979875503,0.0050871,2776.3,2776.2,1.40843356]
[1645979875708,0.0050871,2776.3,2776.2,1.92743356]
[1645979876503,0.00508702,2776.4,2776.2,1.92743356]
[1645979876705,0.00508702,2776.4,2776.3,1.70843356]
[1645979876951,0.00508702,2776.4,2776.3,2.22743356]
[1645979877551,0.00508695,2776.5,2776.3,2.22743356]
[1645979877752,0.00508695,2776.5,2776.3,1.7197]
[1645979878154,0.00508695,2776.5,2776.4,0.21229851]
[1645979878359,0.00508695,2776.5,2776.2,1.80139]
[1645979878757,0.01019699,2776.5,2776.2,2.10139]
[1645979878959,0.00511004,2776.5,2776.2,2.10139]
[1645979879260,1.31676106,2776.1,2776.0,0.16542529]
[1645979879458,0.00511004,2776.5,2775.8,1.36914926]
[1645979879759,5.0,2776.3,2775.9,1.58061951]
[1645979879958,0.00307691,2776.2,2775.9,0.16929792]
[1645979880160,0.00307691,2776.2,2775.8,0.90098]
[1645979881027,0.10133331,2776.2,2775.8,0.90098]
[1645979881221,1.4054579,2776.0,2775.8,0.90098]
[1645979881823,1.1714,2776.2,2775.8,0.90098]
[1645979882021,1.1714,2776.2,2775.9,1.41278538]
[1645979882422,1.1769231,2776.2,2775.9,1.41278538]
[1645979883024,1.1769231,2776.2,2775.9,3.21450538]
[1645979883223,1.1769231,2776.2,2776.0,1.90805552]
[1645979883421,1.1769231,2776.2,2776.1,1.41278538]
[1645979883626,1.17692326,2776.2,2776.1,1.41278538]
[1645979884755,1.17692326,2776.2,2776.1,1.93178538]
[1645979884955,1.1714,2776.2,2776.1,1.93178538]
[1645979885156,1.1714,2776.2,2776.1,2.089498]
[1645979886158,6.65682354,2776.6,2776.3,0.44790627]
[1645979886354,1.29693358,2776.5,2776.4,1.41278538]
[1645979887353,1.34468671,2776.5,2776.4,1.41278538]
[1645979887957,0.12018681,2776.5,2776.4,1.41278538]
[1645979889016,1.38445926,2776.5,2776.4,1.41278538]
[1645979890224,0.12018681,2776.5,2776.4,1.41278538]
[1645979892048,1.17685278,2776.5,2776.4,1.41278538]
[1645979893052,0.12018681,2776.5,2776.4,1.41278538]
[1645979893654,0.12018681,2776.5,2776.4,1.86859167]
[1645979895256,0.12018681,2776.5,2776.4,1.71278538]
[1645979896900,6.66024985,2776.6,2776.4,1.71278538]
[1645979897100,6.66024985,2776.6,2776.5,1.41278538]
[1645979897300,6.78031548,2776.6,2776.5,1.41278538]
[1645979897499,6.73031548,2776.6,2776.5,1.41278538]
[1645979898100,6.72526563,2776.6,2776.5,1.41278538]
[1645979898901,6.6052,2776.6,2776.5,1.41278538]
[1645979900260,6.6052,2776.6,2776.5,1.71278538]
[1645979901660,6.6052,2776.6,2776.5,1.85668538]
[1645979902561,6.6052,2776.6,2776.5,1.71278538]
[1645979902963,11.01071424,2776.7,2776.5,1.71278538]
[1645979903211,0.00511424,2776.7,2776.6,1.55668538]
[1645979903412,0.00511424,2776.7,2776.6,2.07568538]
[1645979904216,0.00511416,2776.8,2776.6,2.97619538]
[1645979904420,0.00511416,2776.8,2776.7,1.41278538]
[1645979904614,0.00511416,2776.8,2776.7,2.23178538]
[1645979905417,0.0051147,2776.9,2776.7,2.23178538]
[1645979905617,0.0051147,2776.9,2776.8,1.41278538]
[1645979905820,0.0051147,2776.9,2776.8,1.93178538]
[1645979906217,0.02045573,2777.3,2777.1,0.00429289]
[1645979906419,0.0204579,2777.4,2777.2,1.41278538]
[1645979906618,0.0204579,2777.4,2777.3,1.41278538]
[1645979907062,0.13848287,2777.4,2777.3,1.41278538]
[1645979907860,17.6338,2777.6,2777.3,1.41278538]
[1645979908059,17.6338,2777.6,2777.4,1.41278538]
[1645979908262,17.6338,2777.6,2777.5,1.41278538]
[1645979908870,17.63687573,2777.6,2777.5,1.41278538]
[1645979909677,17.63687573,2777.6,2777.5,1.93178538]
[1645979909883,0.00307573,2777.6,2777.5,1.93178538]
[1645979910072,0.00540919,2777.7,2777.5,2.07568538]
[1645979910269,0.00540919,2777.7,2777.6,1.55668538]
[1645979910612,0.00540919,2777.7,2777.6,2.37568538]
[1645979911204,16.81353707,2778.0,2777.6,2.37568538]
[1645979911205,0.00307295,2777.8,2777.6,2.37568538]
[1645979911403,0.00307295,2777.8,2777.7,1.60278937]
[1645979911704,0.00307295,2777.8,2777.7,2.12178937]
[1645979912306,0.00291854,2777.9,2777.7,2.12178937]
[1645979912503,0.38760462,2777.8,2777.5,0.1439]
[1645979912706,0.38760462,2777.8,2777.4,2.70061]
[1645979912707,5.0,2777.6,2777.4,2.70061]
[1645979912905,5.0,2777.6,2777.1,0.00429289]
[1645979913309,1.1595,2777.5,2777.1,0.00429289]
[1645979913708,1.16241854,2777.5,2777.1,0.00429289]
[1645979913907,1.16241854,2777.5,2777.2,1.09902809]
[1645979914107,1.16241854,2777.5,2777.3,1.80074]
[1645979914775,1.16241854,2777.5,2777.2,1.50051]
[1645979914980,1.16475596,2777.5,2777.2,1.50051]
[1645979915274,1.16475596,2777.5,2777.3,1.0]
[1645979916075,1.28222831,2777.4,2777.3,1.0]
[1645979918913,4.78222831,2777.4,2777.1,0.00429289]
[1645979919115,4.78222831,2777.4,2776.3,4.04928627]
[1645979919116,5.0,2777.2,2776.3,4.04928627]
[1645979919315,3.5,2777.1,2776.3,0.44790627]
[1645979919517,5.0,2776.4,2776.3,3.94790627]
[1645979919716,13.7066,2776.9,2776.3,0.44790627]
[1645979919918,5.0,2776.6,2776.3,0.44790627]
[1645979920225,1.18338478,2776.5,2776.3,0.44790627]
[1645979921617,1.18338478,2776.5,2776.1,0.00504572]
[1645979921618,8.5,2776.3,2776.1,0.00504572]
[1645979921853,8.5,2776.3,2776.1,4.572e-05]
[1645979922255,8.5,2776.3,2776.1,0.00504566]
[1645979923256,8.5,2776.3,2776.0,0.00513029]
[1645979924470,8.5,2776.3,2776.0,0.00513023]
[1645979926315,6.87548235,2776.3,2776.0,0.00513023]
[1645979926919,6.87548235,2776.3,2776.0,0.00509866]
[1645979928022,6.87548235,2776.3,2776.1,0.90087]
[1645979929018,6.87548235,2776.3,2776.0,0.00509866]
[1645979929359,6.87548235,2776.3,2776.0,0.00204758]
[1645979930569,6.87548235,2776.3,2776.0,0.00512257]
[1645979931568,6.87548235,2776.3,2776.0,0.01024514]
[1645979931769,6.87548235,2776.3,2776.0,0.00512257]
[1645979932271,6.87548235,2776.3,2776.1,0.90087]
[1645979932670,6.87548235,2776.3,2776.2,1.32859908]
[1645979934717,6.229,2776.4,2776.2,1.32859908]
[1645979934920,0.00521693,2776.6,2776.2,2.35386534]
[1645979935119,0.00521693,2776.6,2776.3,1.6733063]
[1645979935321,0.01043386,2776.6,2776.4,1.84759908]
[1645979935519,0.00521693,2776.6,2776.5,1.47249908]
[1645979935722,0.00521693,2776.6,2776.5,2.49663444]
[1645979936018,0.00521693,2776.6,2776.5,2.14759908]
[1645979936619,0.00521714,2776.7,2776.5,2.14759908]
[1645979936857,0.00521714,2776.7,2776.6,1.32859908]
[1645979937657,0.00307352,2776.8,2776.6,1.32859908]
[1645979940365,0.00307352,2776.8,2776.7,1.32859908]
[1645979940819,8.3285,2776.7,2776.5,1.32886422]
[1645979941020,8.5,2776.6,2776.5,1.32886422]
[1645979941216,1.1626409,2776.5,2775.9,0.67914267]
[1645979941418,3.5,2776.4,2776.0,0.00547997]
[1645979941616,6.1935,2776.4,2776.1,1.30417909]